[Event "CCT Chessable Masters D-I 2024"]
[Site "Online"]
[Date "2024.02.05"]
[Round "54"]
[White "Lazavik, Denis"]
[Black "Firouzja, Alireza"]
[Result "1/2-1/2"]
[ECO "E48"]
[WhiteElo "2566"]
[BlackElo "2759"]
[Annotator "TA"]
[PlyCount "155"]
[EventDate "2024.01.12"]
[EventType "k.o."]
[EventCountry "NET"]
[SourceTitle "playchess.com"]
[Source "ChessBase"]
[SourceQuality "1"]
[TimeControl "600+2"]

{[%evp 67,155,65,65,72,66,31,27,27,27,0,35,0,0,0,0,0,59,-68,8,8,8,8,8,8,8,8,8,8,8,8,8,8,8,8,8,8,142,8,8,0,0,0,0,0,0,0,0,0,0,0,0,0,0,0,0,0,0,-5057,-1982,-1534,0,0,0,0,0,0,0,0,0,0,0,0,0,0,0,0,0,0,0,0,0,0,0,0,0,0,0,0,0,0]} 1. d4 {[%emt 0:00:03]} Nf6 {[%emt 0:00:03]} 2. c4 {[%emt 0:00:05]} e6 {[%emt 0:00:01]} 3. Nc3 {[%emt 0:00:00]} Bb4 {[%emt 0:00:10]} 4. e3 {[%emt 0:00:01]} O-O {[%emt 0:00:03]} 5. Bd3 {[%emt 0:00:04]} c5 {[%emt 0:00:14]} 6. Nge2 {[%emt 0:00:02]} d5 {[%emt 0:00:17]} 7. cxd5 {[%emt 0:00:04]} cxd4 {[%emt 0:00:01]} 8. exd4 {[%emt 0:00:02]} Nxd5 {[%emt 0:00:01]} 9. O-O {[%emt 0:00:01]} Nc6 {[%emt 0:00:08]} 10. Bc2 {[%emt 0:00:01]} Be7 {[%emt 0:00:56]} 11. Qd3 {[%emt 0:00:15]} g6 {[%emt 0:00:12]} 12. a3 {[%emt 0:00:09]} b6 {[%emt 0:00:55]} 13. Bh6 {[%emt 0:00:26]} Re8 {[%emt 0:00:03]} 14. Qf3 {[%emt 0:01:18]} Bb7 {[%emt 0:00:36]} 15. Be4 {[%emt 0:00:11]} Na5 {[%emt 0:00:29]} 16. Rac1 {[%emt 0:02:08]} Bg5 {[%emt 0:02:19]} 17. Bxg5 {[%emt 0:00:24]} Qxg5 {[%emt 0:00:01]} 18. Nxd5 {[%emt 0:02:19]} exd5 {[%emt 0:00:02]} 19. Rc7 {[%emt 0:00:51]} Re7 {[%emt 0:00:04]} 20. Rxe7 {[%emt 0:00:02]} Qxe7 {[%emt 0:00:01]} 21. Bxd5 {[%emt 0:00:01]} Bxd5 {[%emt 0:00:03]} 22. Qxd5 {[%emt 0:00:00]} Rd8 {[%emt 0:00:28]} 23. Qb5 {[%emt 0:00:21]} Qe4 {[%emt 0:00:12]} 24. Rd1 {[%emt 0:00:44]} Rc8 {[%emt 0:00:58]} 25. Nc3 {[%emt 0:00:22]} Qc2 {[%emt 0:00:06]} 26. Re1 {[%emt 0:00:06]} Qd2 {[%emt 0:00:08]} 27. Re8+ {[%emt 0:00:24]} Rxe8 {[%emt 0:00:08]} 28. Qxe8+ {[%emt 0:00:00]} Kg7 {[%emt 0:00:00]} 29. Qe5+ {[%emt 0:00:01]} Kg8 {[%emt 0:00:24]} 30. h4 {[%emt 0:00:04]} Nc4 {[%emt 0:00:11]} 31. Qf6 {[%emt 0:00:05]} Qxb2 {[%emt 0:00:58]} 32. Nd5 {[%emt 0:00:06]} Qb1+ {[%emt 0:00:12]} 33. Kh2 {[%emt 0:00:02]} Qe4 {[%emt 0:00:01]} 34. Ne7+ {[%emt 0:00:18]} Kf8 {[%emt 0:00:01]} 35. Nc6 {[%emt 0:00:07]} Kg8 {[%emt 0:00:13]} 36. Nxa7 {[%emt 0:00:03]} (36. d5 $5 {[%cal Rh4h5]}) 36... Nxa3 {[%emt 0:00:19]} 37. Nc8 {[%emt 0:00:02]} Nc4 {[%emt 0:00:07]} 38. d5 {[%emt 0:00:03]} b5 {[%emt 0:00:08]} (38... Ne5 $5 39. f3 (39. Nxb6 Ng4+ 40. Kg3 Nxf6 41. f3 Qe1+ 42. Kh2 Nh5 43. Nc8 Nf4 44. d6 Qf2 45. Ne7+ Kg7) 39... Nxf3+ 40. Qxf3 Qxh4+ 41. Qh3 Qf4+ 42. g3 Qd2+ 43. Qg2 Qh6+ 44. Qh3 Qd2+ 45. Qg2 Qh6+ 46. Qh3 Qd2+ $11) 39. d6 {[%emt 0:00:01]} Qe5+ {[%emt 0:00:01]} 40. Qxe5 {[%emt 0:00:02]} Nxe5 {[%emt 0:00:01]} 41. Nb6 {[%emt 0:00:01]} b4 {[%emt 0:00:00]} (41... Kf8 $11) 42. f4 {[%emt 0:00:02]} (42. d7 $14 Nc6 43. Nd5) 42... Ng4+ {[%emt 0:00:01]} (42... Nc6 $15 43. Kg3 Kg7) 43. Kg3 $11 {[%emt 0:00:01]} Nf6 $1 {[%emt 0:00:01]} 44. d7 {[%emt 0:00:05]} Nxd7 $1 {[%emt 0:00:02]} 45. Nxd7 {[%emt 0:00:00]} b3 {[%emt 0:00:01]} 46. Nf6+ {[%emt 0:00:01]} Kg7 {[%emt 0:00:04]} 47. Ne4 {[%emt 0:00:01]} b2 {[%emt 0:00:01]} 48. Nc3 {[%emt 0:00:00]} Kf6 {[%emt 0:00:07]} 49. Kf3 {[%emt 0:00:01]} h5 $1 {[%emt 0:00:04]} 50. Ke4 {[%emt 0:00:03]} Ke6 {[%emt 0:00:01]} 51. f5+ {[%emt 0:00:05]} Kf6 {[%emt 0:00:02]} (51... gxf5+ $11 {remains equal.} 52. Kd4 Kd6) 52. Kf4 {[%emt 0:00:02]} (52. Nd5+ $16 Kg7 53. Nc3) 52... gxf5 $11 {[%emt 0:00:03]} 53. g3 {[%emt 0:00:01]} Ke6 $1 {[%emt 0:00:01]} 54. Nb1 {[%emt 0:00:06]} Kf6 {[%emt 0:00:02]} 55. Nc3 {[%emt 0:00:01]} Ke6 $1 {[%emt 0:00:00]} 56. Kg5 {[%emt 0:00:01]} Ke5 {[%emt 0:00:01]} 57. Kxh5 {[%emt 0:00:01]} Kd4 {[%emt 0:00:03]} 58. Nb1 {[%emt 0:00:00]} Kd3 {[%emt 0:00:01]} 59. Kg5 {[%emt 0:00:01]} Kc2 {[%emt 0:00:00]} 60. Na3+ {[%emt 0:00:06]} Kb3 {[%emt 0:00:01]} 61. Nb1 {[%emt 0:00:00]} Kc2 {[%emt 0:00:01]} 62. h5 $2 {[%emt 0:00:02][%mdl 8192]} (62. Na3+ $11 Kb3 63. Nb1) 62... Kxb1 $19 {[%emt 0:00:01]} 63. h6 {[%emt 0:00:00] [#]} Ka2 $2 {[%emt 0:00:09]} (63... f6+ $1 $19 64. Kg6 Ka2) 64. h7 $1 $11 {[%emt 0:00:01]} b1=Q {[%emt 0:00:00]} (64... b1=R $2 {too greedy.} 65. h8=Q $18) 65. h8=Q {[%emt 0:00:01]} Qe4 {[%emt 0:00:01]} 66. Qc3 {[%emt 0:00:07]} Qg4+ {[%emt 0:00:04]} 67. Kf6 {[%emt 0:00:02]} Qg6+ {[%emt 0:00:00]} 68. Ke7 {[%emt 0:00:00]} Qe6+ {[%emt 0:00:02]} 69. Kf8 {[%emt 0:00:01]} Kb1 {[%emt 0:00:02]} 70. Qc7 {[%emt 0:00:04]} Kb2 {[%emt 0:00:06]} 71. Qe7 {[%emt 0:00:05]} Qg6 {[%emt 0:00:01]} 72. Qe5+ {[%emt 0:00:02]} Kc2 {[%emt 0:00:01]} 73. Ke7 {[%emt 0:00:00]} Kd3 {[%emt 0:00:01]} 74. Qf4 {[%emt 0:00:02]} Qe6+ {[%emt 0:00:01]} 75. Kf8 {[%emt 0:00:01]} Qg6 {[%emt 0:00:01]} 76. Ke7 {[%emt 0:00:02]} Qe6+ {[%emt 0:00:01]} 77. Kf8 {[%emt 0:00:00]} Qg6 {[%emt 0:00:00]} 78. Ke7 {[%emt 0:00:01]} 1/2-1/2